fUSD/lending_fUSD_20260427
["ID","MTS","AMOUNT","RATE_DAILY","PERIOD"]
[421181879,1777219221155,73437.05092559,8.7e-05,2]
[421181881,1777219233503,394.64069969,7.888e-05,2]
[421181886,1777219251316,49820.30837472,0.000107,2]
[421181895,1777219408709,719.84,0.00032877,120]
[421181897,1777219787987,521.37677507,0.0003287,120]
[421181903,1777219831997,-280.0,8.219e-05,2]
[421181905,1777219832007,-232.73855724,8.46e-05,2]
[421181907,1777219832017,-388.11415823,8.7e-05,2]
[421181908,1777219832026,-300.0,9.039e-05,2]
[421181909,1777219832036,-300.0,9.039e-05,2]
[421181910,1777219832046,-1200.0,9.039e-05,2]
[421181911,1777219832056,-300.0,9.04e-05,2]
[421181912,1777219832065,-1168.0,9.04e-05,2]
[421181913,1777219832076,-3545.47933879,9.041e-05,2]
[421181914,1777219832088,-250.0,9.041e-05,2]
[421181915,1777219832099,-5000.0,9.041e-05,2]
[421181916,1777219832109,-420.0,9.943e-05,2]
[421181917,1777219832119,-150.0,9.944e-05,2]
[421181918,1777219832129,-3243.23792295,0.000107,2]
[421181919,1777219832138,-587.0,0.00010937,2]
[421181920,1777219832147,-655.0,0.00012031,2]
[421181921,1777219832157,-452.37,0.00014495,2]
[421181922,1777219832166,-466.04,0.00016116,2]
[421181923,1777219832176,-617.42,0.00016116,2]
[421181924,1777219832186,-165.7,0.00016438,2]
[421181925,1777219832195,-152.0,0.00016798,7]
[421181926,1777219832205,-152.0,0.00016798,7]
[421181927,1777219832215,-152.0,0.00016827,7]
[421181928,1777219832225,-152.0,0.00016827,7]
[421181929,1777219832234,-152.0,0.00016827,7]
[421181930,1777219832244,-152.0,0.00016827,7]
[421181931,1777219832254,-152.0,0.00016935,7]
[421181932,1777219832263,-152.0,0.00016935,7]
[421181933,1777219832273,-342.24,0.00017728,2]
[421181934,1777219832283,-441.02,0.00017728,2]
[421181935,1777219832294,-165.7,0.00018635,2]
[421181936,1777219832303,-500.0,0.000187,6]
[421181937,1777219832313,-1000.0,0.000188,6]
[421181938,1777219832323,-162.25551732,0.00018802,2]
[421181939,1777219832334,-160.0,0.00018802,2]
[421181940,1777219832344,-160.0,0.00018812,2]
[421181941,1777219832353,-1500.0,0.000189,6]
[421181942,1777219832363,-156.98014122,0.00018918,2]
[421181944,1777219832372,-1176.56,0.00019,2]
[421181946,1777219832382,-6531.498,0.00019,2]
[421181948,1777219832392,-527.457,0.00019,2]
[421181950,1777219832402,-223.42196155,0.00019005,2]
[421181952,1777219832411,-443.95623416,0.00019015,2]
[421181955,1777219832428,-1160.87387984,0.00019015,2]
[421181960,1777219832467,-606.0,0.00019015,2]
[421182109,1777219838094,-332.56080376,0.00019015,2]
[421182346,1777219840811,-2059.1293258,0.00019015,2]
[421182349,1777219840823,-4699.3587183,0.00019015,2]
[421182351,1777219840834,-425.63,0.00019015,2]
[421182353,1777219840845,-9105.93876457,0.00019015,2]
[421182354,1777219840871,-5164.30139385,0.00019015,2]
[421182390,1777219843853,-314.63025709,0.00019015,2]
[421182391,1777219845951,-10203.90623301,0.00019015,2]
[421182392,1777219846006,-1172.261273,0.00019015,2]
[421182393,1777219846019,-354.42310879,0.00019015,2]
[421182394,1777219846062,-8374.57473752,0.00019015,2]
[421182395,1777219846436,-403.91746187,0.00019015,2]
[421182396,1777219846491,-56491.71062852,0.00019015,2]
[421182398,1777220014763,500.0,0.00032876,120]
[421182400,1777220309338,150.0,0.00032673,120]
[421182401,1777220454958,150.0,0.00032784,120]
[421182403,1777220713830,591.0,0.00030137,120]
[421182405,1777220870081,172500.0,0.0003287,120]
[421182406,1777220875558,150.1321572,0.00026414,120]
[421182413,1777221032159,-257.0,8.219e-05,2]
[421182414,1777221032168,-280.0,8.219e-05,2]
[421182415,1777221032178,-150.0,8.877e-05,2]
[421182416,1777221032187,-219.0,9.041e-05,2]
[421182417,1777221032196,-220.8578595,0.0001,2]
[421182418,1777221032206,-150.0,0.00011096,2]
[421182419,1777221032215,-250.0,0.00013,2]
[421182420,1777221032225,-160.0,0.0001442,2]
[421182421,1777221032234,-923.85,0.000149,2]
[421182422,1777221032243,-299.99,0.000149,2]
[421182423,1777221032253,-150.99,0.000149,2]
[421182424,1777221032262,-300.0,0.00015,2]
[421182425,1777221032272,-350.0,0.00017,2]
[421182426,1777221032282,-1200.0,0.00017111,2]
[421182427,1777221032291,-300.0,0.00017111,2]
[421182428,1777221032302,-150.0,0.00017112,2]
[421182429,1777221032312,-150.0,0.00017112,2]
[421182430,1777221032322,-150.0,0.00017112,2]
[421182431,1777221032331,-150.0,0.00017112,4]
[421182432,1777221032340,-150.49628327,0.00017112,2]
[421182433,1777221032349,-150.0,0.00017112,2]
[421182434,1777221032358,-150.0,0.00017112,2]
[421182435,1777221032368,-150.0,0.00017112,2]
[421182436,1777221032378,-150.0,0.00017112,2]
[421182437,1777221032388,-150.0,0.00017384,2]
[421182438,1777221032399,-150.0,0.00017588,2]
[421182439,1777221032409,-150.0,0.00017588,2]
[421182440,1777221032419,-150.0,0.00017656,2]
[421182441,1777221032429,-689.7181,0.00017853,2]
[421182442,1777221032439,-150.0,0.00017927,2]
[421182443,1777221032448,-412.57958901,0.00017943,2]
[421182444,1777221032457,-550.0,0.00017952,2]
[421182445,1777221032467,-29790.5172796,0.00017953,2]
[421182446,1777221032477,-289.72232823,0.00017953,2]
[421182447,1777221032502,-1401.41969087,0.00017953,2]
[421182448,1777221032511,-448.24350259,0.00017953,2]
[421182449,1777221032534,-566.00113161,0.00017953,2]
[421182450,1777221032559,-69.0800245,0.00017953,2]
[421182451,1777221032568,-1542.36243861,0.00017953,2]
[421182452,1777221032586,-397.84647269,0.00017953,2]
[421182453,1777221032601,-19371.6712669,0.00017953,2]
[421182454,1777221032610,-150.0,0.00018063,2]
[421182455,1777221032620,-150.0,0.00018063,2]
[421182456,1777221032629,-150.0,0.00018063,2]
[421182457,1777221032639,-150.0,0.00018063,2]
[421182458,1777221032648,-150.0,0.00018063,2]
[421182459,1777221032658,-150.0,0.00018199,2]
[421182460,1777221032667,-2000.0,0.0001824,2]
[421182461,1777221032677,-150.0,0.00018272,2]
[421182462,1777221032686,-150.0,0.00018272,2]
[421182463,1777221032695,-150.0,0.00018272,2]
[421182465,1777221032704,-150.0,0.00018272,2]
[421182467,1777221032714,-221.31840711,0.00018272,2]
[421182469,1777221032723,-465.5,0.000184,2]
[421182471,1777221032733,-394.57,0.000184,2]
[421182474,1777221032742,-585.6,0.000184,2]
[421182477,1777221032752,-479.2,0.000184,2]
[421182480,1777221032762,-304.52,0.000184,2]
[421182483,1777221032772,-549.74696226,0.00018438,2]
[421182486,1777221032781,-150.0,0.0001847,2]
[421182489,1777221032791,-209.0,0.000185,2]
[421182492,1777221032801,-209.0,0.000185,2]
[421182494,1777221032810,-500.0,0.000185,2]
[421182496,1777221032820,-500.0,0.000185,2]
[421182498,1777221032829,-500.0,0.000185,2]
[421182500,1777221032839,-373.64278745,0.000185,2]
[421182503,1777221032848,-416.28835264,0.000185,2]
[421182506,1777221032858,-675.41688272,0.000185,2]
[421182508,1777221032868,-675.41688272,0.000185,2]
[421182510,1777221032877,-675.41688272,0.000185,2]
[421182512,1777221032887,-675.41688272,0.000185,2]
[421182514,1777221032896,-675.41688272,0.000185,2]
[421182516,1777221032906,-675.41688272,0.000185,2]
[421182518,1777221032915,-675.41688272,0.000185,2]
[421182520,1777221032926,-675.41688272,0.000185,2]
[421182522,1777221032935,-675.41688272,0.000185,2]
[421182524,1777221032944,-675.41688272,0.000185,2]
[421182526,1777221032953,-675.41688272,0.000185,2]
[421182528,1777221032963,-675.41688272,0.000185,2]
[421182530,1777221032978,-675.41688272,0.000185,2]
[421182532,1777221032988,-675.41688272,0.000185,2]
[421182534,1777221032997,-675.41688272,0.000185,2]
[421182536,1777221033007,-675.41688272,0.000185,2]
[421182538,1777221033017,-675.41688272,0.000185,2]
[421182540,1777221033027,-675.41688272,0.000185,2]
[421182542,1777221033037,-675.41688272,0.000185,2]
[421182544,1777221033047,-675.41688272,0.000185,2]
[421182546,1777221033057,-675.41688272,0.000185,2]
[421182549,1777221033067,-675.41688272,0.000185,2]
[421182550,1777221033076,-675.41688272,0.000185,2]
[421182552,1777221033086,-675.41688272,0.000185,2]
[421182553,1777221033096,-675.41688272,0.000185,2]
[421182554,1777221033105,-675.41688272,0.000185,2]
[421182555,1777221033114,-675.41688272,0.000185,2]
[421182556,1777221033124,-675.41688272,0.000185,2]
[421182557,1777221033134,-675.41688272,0.000185,2]
[421182558,1777221033143,-675.41688272,0.000185,2]
[421182559,1777221033152,-675.41688272,0.000185,2]
[421182560,1777221033162,-675.41688272,0.000185,2]
[421182561,1777221033171,-675.41688272,0.000185,2]
[421182562,1777221033181,-675.41688272,0.000185,2]
[421182563,1777221033190,-675.41688272,0.000185,2]
[421182564,1777221033200,-675.41688272,0.000185,2]
[421182565,1777221033210,-675.41688272,0.000185,2]
[421182566,1777221033220,-675.41688272,0.000185,2]
[421182567,1777221033229,-675.41688272,0.000185,2]
[421182568,1777221033239,-675.41688272,0.000185,2]
[421182569,1777221033249,-675.41688272,0.000185,2]
[421182570,1777221033259,-675.41688272,0.000185,2]
[421182571,1777221033269,-675.41688272,0.000185,2]
[421182572,1777221033278,-675.41688272,0.000185,2]
[421182573,1777221033288,-675.41688272,0.000185,2]
[421182574,1777221033298,-675.41688272,0.000185,2]
[421182575,1777221033307,-675.41688272,0.000185,2]
[421182576,1777221033317,-287.06394783,0.000185,2]
[421182577,1777221033327,-458.27804831,0.000185,2]
[421182578,1777221033336,-675.41688272,0.000185,2]
[421182579,1777221033346,-675.41688272,0.000185,2]
[421182580,1777221033356,-500.0,0.000185,2]
[421182581,1777221033365,-675.41688272,0.000185,2]
[421182582,1777221033378,-500.0,0.000185,2]
[421182583,1777221033388,-220.29408667,0.000185,2]
[421182584,1777221033398,-997.18635832,0.000185,2]
[421182585,1777221033407,-997.18635832,0.000185,2]
[421182586,1777221033417,-997.18635832,0.000185,2]
[421182587,1777221033427,-356.23113352,0.000185,2]
[421182588,1777221033442,-640.9552248,0.000185,2]
[421182589,1777221033453,-997.18635832,0.000185,2]
[421182590,1777221033462,-997.18635832,0.000185,2]
[421182591,1777221033472,-997.18635832,0.000185,2]
[421182592,1777221033482,-997.18635832,0.000185,2]
[421182593,1777221033492,-997.18635832,0.000185,2]
[421182594,1777221033501,-997.18635832,0.000185,2]
[421182595,1777221033511,-997.18635832,0.000185,2]
[421182596,1777221033520,-997.18635832,0.000185,2]
[421182597,1777221033530,-997.18635832,0.000185,2]
[421182598,1777221033540,-997.18635832,0.000185,2]
[421182599,1777221033549,-997.18635832,0.000185,2]
[421182600,1777221033559,-997.18635832,0.000185,2]
[421182601,1777221033568,-997.18635832,0.000185,2]
[421182602,1777221033578,-997.18635832,0.000185,2]
[421182603,1777221033587,-997.18635832,0.000185,2]
[421182604,1777221033597,-953.46810728,0.000185,2]
[421182605,1777221033613,-43.71825104,0.000185,2]
[421182606,1777221033623,-997.18635832,0.000185,2]
[421182607,1777221033632,-997.18635832,0.000185,2]
[421182608,1777221033642,-997.18635832,0.000185,2]
[421182609,1777221033652,-997.18635832,0.000185,2]
[421182610,1777221033661,-997.18635832,0.000185,2]
[421182611,1777221033671,-997.18635832,0.000185,2]
[421182612,1777221033681,-997.18635832,0.000185,2]
[421182613,1777221033690,-997.18635832,0.000185,2]
[421182614,1777221033700,-997.18635832,0.000185,2]
[421182615,1777221033712,-997.18635832,0.000185,2]
[421182616,1777221033722,-997.18635832,0.000185,2]
[421182617,1777221033731,-997.18635833,0.000185,2]
[421182618,1777221033741,-997.18635833,0.000185,2]
[421182619,1777221033750,-997.18635833,0.000185,2]
[421182620,1777221033760,-997.18635833,0.000185,2]
[421182621,1777221033770,-997.18635833,0.000185,2]
[421182622,1777221033779,-997.18635833,0.000185,2]
[421182623,1777221033789,-997.1863583,0.000185,2]
[421182624,1777221033799,-250.0,0.000185,2]
[421182625,1777221033808,-153697.79038783,0.00018501,2]
[421182637,1777221038272,-260.72729884,0.00018491,2]
[421182639,1777221038285,-584.83470569,0.00018501,2]
[421182641,1777221038300,-874.22355268,0.00018501,2]
[421182643,1777221038332,-361.1986437,0.00018501,2]
[421182644,1777221038447,-708.38683977,0.00018501,2]
[421182645,1777221038461,-748.26893567,0.00018501,2]
[421182646,1777221038476,-2484.84122466,0.00018501,2]
[421182647,1777221038490,-539.996,0.00018501,2]
[421182648,1777221038519,-796.01445531,0.00018501,2]
[421182649,1777221038533,-4564.38736795,0.00018501,2]
[421182650,1777221038547,-740.0330259,0.00018501,2]
[421182651,1777221038562,-315.0,0.00018501,2]
[421182652,1777221038576,-3494.11304809,0.00018501,2]
[421182653,1777221038590,-691.58645727,0.00018501,2]
[421182654,1777221038619,-86635.9199613,0.00018501,2]
[421182655,1777221038633,-2992.09560657,0.00018501,2]
[421182656,1777221038647,-2692.33929163,0.00018501,2]
[421182657,1777221038671,-1089.19505249,0.00018501,2]
[421182867,1777221041578,-9661.38023036,0.00018501,2]
[421182869,1777221041593,-369.0,0.00018501,2]
[421182872,1777221041604,-1025.49280924,0.00018501,2]
[421182874,1777221041616,-9136.69,0.00018501,2]
[421182876,1777221041628,-899.72188916,0.00018501,2]
[421182878,1777221041639,-3337.79532226,0.00018501,2]
[421182882,1777221041666,-3812.9,0.00018501,2]
[421182885,1777221041678,-832.92,0.00018501,2]
[421182886,1777221041699,-49831.96705997,0.00018501,2]
[421182888,1777221041710,-19707.99964549,0.00018501,2]
[421182896,1777221041787,-875.89626483,0.00018501,2]
[421182899,1777221041798,-3201.26999148,0.00018501,2]
[421182901,1777221041809,-6667.26990554,0.00018501,2]
[421183079,1777221043383,-10463.41847471,0.00018501,2]
[421183086,1777221043443,-2654.84273216,0.00018501,2]
[421183099,1777221043553,-606.5989294,0.00018501,2]
[421183107,1777221043613,-3242.56529859,0.00018501,2]
[421183377,1777221046227,-43836.78634623,0.00018501,2]
[421183379,1777221046238,-35546.52556407,0.00018501,2]
[421183386,1777221046289,-17198.33181195,0.00018501,2]
[421183423,1777221046625,-951.57299109,0.00018501,2]
[421183425,1777221046637,-361924.2175,0.00018501,2]
[421183428,1777221046649,-488807.84591584,0.00018501,2]
[421183430,1777221046661,-37872.71493146,0.00018501,2]
[421183432,1777221046672,-6212.86499112,0.00018501,2]
[421183434,1777221046683,-3860.75652714,0.00018501,2]
[421184175,1777221601612,150.0,0.00024163,120]
[421184176,1777221601956,220.88396255,0.00024163,120]
[421184177,1777221918652,500.0,0.00032877,120]
[421184178,1777222034060,500.0,0.00032877,120]
[421184179,1777222050794,1000.0,0.00032877,120]
[421184180,1777222078848,500.0,0.00032877,120]
[421184181,1777222096088,500.0,0.00032877,120]
[421184182,1777222109730,1000.0,0.00032877,120]
[421184183,1777222126588,500.0,0.00032877,120]
[421184184,1777222143475,500.0,0.00032877,120]
[421184185,1777222158673,1000.0,0.00032877,120]
[421184190,1777222231493,-280.0,8.219e-05,2]
[421184191,1777222231503,-300.0,8.322e-05,2]
[421184192,1777222231513,-300.0,8.934e-05,2]
[421184193,1777222231522,-361.59655683,8.934e-05,2]
[421184194,1777222231532,-1200.0,9.04e-05,2]
[421184195,1777222231551,-300.0,9.041e-05,2]
[421184196,1777222231562,-295.88977126,9.041e-05,2]
[421184197,1777222231572,-493.62525606,9.944e-05,2]
[421184198,1777222231662,-471.16,9.944e-05,2]
[421184199,1777222231690,-715.21474394,9.944e-05,2]
[421184200,1777222231699,-1381.0,0.00010939,2]
[421184202,1777222231709,-250.0,0.00013,2]
[421184203,1777222231718,-162.85,0.000137,2]
[421184205,1777222231728,-300.0,0.00015,2]
[421184207,1777222231738,-5779.8,0.00016438,2]
[421184209,1777222231748,-350.0,0.00017,2]
[421184212,1777222231758,-163.34704649,0.00017649,7]
[421184213,1777222231767,-163.34704649,0.00017664,7]
[421184215,1777222231777,-163.34704648,0.00017685,7]
[421184217,1777222231787,-550.0,0.00017852,2]
[421184219,1777222231796,-1334.49,0.0001798,2]
[421184221,1777222231805,-1405.43,0.0001798,2]
[421184224,1777222231815,-1214.4,0.0001798,2]
[421184226,1777222231824,-1231.02,0.0001798,2]
[421184228,1777222231835,-150.0,0.0001798,2]
[421184230,1777222231845,-440.02,0.0001798,2]
[421184232,1777222231854,-454.59,0.0001798,2]
[421184234,1777222231863,-3782.131,0.00018192,2]
[421184236,1777222231872,-578.20924308,0.00018197,2]
[421184238,1777222231882,-8565.75555911,0.00018197,2]
[421184240,1777222231891,-187.78006525,0.00018197,2]
[421184242,1777222231901,-211.40802048,0.00018197,2]
[421184244,1777222231911,-219.23011724,0.00018197,2]
[421184246,1777222231920,-227.34163157,0.00018197,2]
[421184248,1777222231936,-235.75327194,0.00018197,2]
[421184250,1777222231946,-152.0,0.00018197,2]
[421184252,1777222231956,-238.0050983,0.00018197,2]
[421184255,1777222231966,-244.476143,0.00018197,2]
[421184257,1777222231975,-152.0,0.00018197,2]
[421184259,1777222231985,-253.52176029,0.00018197,2]
[421184261,1777222231995,-187.78006525,0.00018197,2]
[421184263,1777222232005,-272.26766677,0.00018197,2]
[421184264,1777222232014,-262.90206542,0.00018197,2]
[421184266,1777222232024,-272.62944185,0.00018197,2]
[421184267,1777222232034,-282.71673119,0.00018197,2]
[421184268,1777222232044,-293.17725025,0.00018197,2]
[421184269,1777222232054,-304.02480851,0.00018197,2]
[421184270,1777222232064,-346.74501997,0.00018197,2]
[421184271,1777222232075,-174.61919141,0.00018197,2]
[421184272,1777222232085,-621.78829552,0.00018197,2]
[421184273,1777222232096,-594.0746945,0.00018197,2]
[421184274,1777222232105,-500.0,0.00018226,2]
[421184275,1777222232116,-500.0,0.00018226,2]
[421184276,1777222232126,-440.94177385,0.00018226,2]
[421184277,1777222232136,-180.26260677,0.00018226,2]
[421184278,1777222232146,-150.0,0.00018226,2]
[421184279,1777222232155,-187.29416377,0.00018226,2]
[421184280,1777222232165,-2128.95,0.00018226,2]
[421184281,1777222232175,-8882.6885148,0.00018252,2]
[421184282,1777222232186,-500.0,0.00018302,2]
[421184283,1777222232195,-1000.0,0.00018307,2]
[421184284,1777222232205,-9211.34798985,0.00018307,2]
[421184285,1777222232215,-9552.16786547,0.00018362,2]
[421184286,1777222232225,-160.0,0.00018387,2]
[421184287,1777222232235,-17488.43036395,0.000184,2]
[421184288,1777222232249,-3145.37229853,0.000184,2]
[421184295,1777222237909,-150.0,0.00016438,2]
[421184296,1777222237920,-150.6321,0.00017753,2]
[421184297,1777222237930,-0.95259406,0.000184,2]
[421184350,1777222240061,-712.09,0.000184,2]
[421184351,1777222240073,-1390.57069112,0.000184,2]
[421184352,1777222240083,-8570.04823178,0.00018417,2]
[421184353,1777222240092,-418.5637299,0.00018417,2]
[421184354,1777222240102,-200.0,0.0001849,2]
[421184355,1777222240112,-1280.88388878,0.0001849,2]
[421184356,1777222240122,-307.16760963,0.0001849,2]
[421184357,1777222240134,-339.49221771,0.0001849,2]
[421184358,1777222240143,-200.0,0.0001849,2]
[421184359,1777222240152,-500.0,0.0001849,2]
[421184360,1777222240161,-278.55420501,0.0001849,2]
[421184361,1777222240171,-743.50770149,0.0001849,2]
[421184362,1777222240180,-500.0,0.0001849,2]
[421184363,1777222240189,-500.0,0.0001849,2]
[421184364,1777222240199,-151.0,0.0001849,2]
[421184365,1777222240207,-500.0,0.0001849,2]
[421184366,1777222240217,-151.0,0.0001849,2]
[421184367,1777222240227,-500.0,0.0001849,2]
[421184368,1777222240236,-151.0,0.0001849,2]
[421184369,1777222240245,-500.0,0.0001849,2]
[421184370,1777222240254,-151.0,0.0001849,2]
[421184371,1777222240264,-28.80885477,0.0001849,2]
[421184394,1777222242519,-471.19114523,0.0001849,2]
[421184395,1777222242529,-151.0,0.0001849,2]
[421184396,1777222242538,-500.0,0.0001849,2]
[421184397,1777222242547,-151.0,0.0001849,2]
[421184398,1777222242557,-500.0,0.0001849,2]
[421184399,1777222242567,-151.0,0.0001849,2]
[421184400,1777222242577,-151.0,0.0001849,2]
[421184401,1777222242587,-151.0,0.0001849,2]
[421184402,1777222242598,-151.0,0.0001849,2]
[421184403,1777222242609,-151.0,0.0001849,2]
[421184404,1777222242621,-151.0,0.0001849,2]
[421184405,1777222242631,-29.8304666,0.0001849,2]
[421184408,1777222245610,-1137.08438216,0.00018401,2]
[421184409,1777222245620,-121.1695334,0.0001849,2]
[421184410,1777222245630,-151.0,0.0001849,2]
[421184411,1777222245639,-151.0,0.0001849,2]
[421184412,1777222245648,-151.0,0.0001849,2]
[421184413,1777222245662,-241.58801572,0.0001849,2]
[421184414,1777222245671,-681.61234701,0.0001849,2]
[421184415,1777222245680,-151.1837373,0.0001849,2]
[421184416,1777222245690,-279.9045709,0.0001849,2]
[421184417,1777222245699,-187.78006525,0.0001849,2]
[421184418,1777222245708,-1002.06,0.0001849,2]
[421184419,1777222245718,-1391.48836155,0.000185,2]
[421184420,1777222245727,-500.0,0.000185,2]
[421184421,1777222245736,-500.0,0.000185,2]
[421184422,1777222245745,-776.13306518,0.000185,2]
[421184423,1777222245755,-945.97189863,0.000185,2]
[421184424,1777222245765,-500.0,0.000185,2]
[421184425,1777222245774,-354.20586067,0.000185,2]
[421184426,1777222245783,-200.94476348,0.000185,2]
[421184427,1777222245792,-461.54995121,0.000185,2]
[421184428,1777222245802,-500.0,0.000185,2]
[421184429,1777222245811,-320.79463382,0.000185,2]
[421184430,1777222245821,-500.0,0.000185,2]
[421184431,1777222245831,-500.0,0.000185,2]
[421184432,1777222245841,-500.0,0.000185,2]
[421184433,1777222245851,-500.0,0.000185,2]
[421184434,1777222245861,-500.0,0.000185,2]
[421184435,1777222245871,-500.0,0.000185,2]
[421184436,1777222245881,-500.0,0.000185,2]
[421184437,1777222245890,-500.0,0.000185,2]
[421184438,1777222245900,-500.0,0.000185,2]
[421184439,1777222245909,-500.0,0.000185,2]
[421184440,1777222245919,-672.23,0.000185,2]
[421184441,1777222245928,-672.23,0.000185,2]
[421184442,1777222245938,-672.23,0.000185,2]
[421184443,1777222245948,-627.4,0.000185,2]
[421184444,1777222245957,-627.4,0.000185,2]
[421184445,1777222245968,-627.4,0.000185,2]
[421184446,1777222245977,-668.87,0.000185,2]
[421184447,1777222245986,-668.87,0.000185,2]
[421184448,1777222245995,-668.87,0.000185,2]
[421184449,1777222246005,-500.0,0.000185,2]
[421184450,1777222246014,-500.0,0.000185,2]
[421184451,1777222246022,-500.0,0.000185,2]
[421184452,1777222246033,-152.30971721,0.000185,2]
[421184453,1777222246042,-500.0,0.000185,2]
[421184454,1777222246051,-500.0,0.000185,2]
[421184455,1777222246061,-500.0,0.000185,2]
[421184456,1777222246070,-500.0,0.000185,2]
[421184457,1777222246079,-500.0,0.000185,2]
[421184458,1777222246088,-500.0,0.000185,2]
[421184460,1777222246098,-500.0,0.000185,2]
[421184462,1777222246107,-500.0,0.000185,2]
[421184464,1777222246115,-500.0,0.000185,2]
[421184466,1777222246124,-500.0,0.000185,2]
[421184468,1777222246134,-500.0,0.000185,2]
[421184470,1777222246143,-500.0,0.000185,2]
[421184472,1777222246152,-500.0,0.000185,2]
[421184474,1777222246162,-500.0,0.000185,2]
[421184476,1777222246171,-500.0,0.000185,2]
[421184478,1777222246180,-163604.5004151,0.00018501,2]
[421184480,1777222246190,-200.0,0.00018501,2]
[421184482,1777222246198,-664.88,0.00018501,2]
[421184484,1777222246207,-664.88,0.00018501,2]
[421184486,1777222246216,-664.88,0.00018501,2]
[421184488,1777222246225,-664.88,0.00018501,2]
[421184490,1777222246234,-664.88,0.00018501,2]
[421184492,1777222246244,-664.88,0.00018501,2]
[421184494,1777222246253,-238468.06129608,0.00018501,2]
[421184507,1777222246377,-51021.11374457,0.00018501,2]
[421184530,1777222246667,-374.6097,0.00018501,2]
[421184531,1777222246678,-390.13565647,0.00018501,2]
[421184532,1777222248075,500.0,0.00032877,120]
[421184533,1777222263740,500.0,0.00032877,120]
[421184534,1777222281070,1000.0,0.00032877,120]
[421184535,1777222309812,217.0,0.0003287,120]
[421184536,1777222312695,242.0,0.0003287,120]
[421184537,1777222349263,161.14572454,0.000328,120]
[421184539,1777222371715,234.0000009,0.00032877,120]
[421184540,1777222377437,500.0,0.0003287,120]
[421184541,1777222412383,208.18,0.00032877,120]
[421184542,1777222432182,500.0,0.00032877,120]
[421184543,1777222447394,500.0,0.00032877,120]
[421184544,1777222481384,1000.0,0.00032877,120]
[421184545,1777222499227,500.0,0.00032877,120]
[421184546,1777222506070,500.0,0.00032877,120]
[421184547,1777222517753,1000.0,0.00032877,120]
[421184561,1777222662033,375.0,0.0003287,120]
[421184571,1777222688354,-1200.0,7.944e-05,2]
[421184572,1777222688378,-250.0,7.945e-05,2]
[421184573,1777222688400,-8550.0,7.945e-05,2]
[421184574,1777222695016,-10000.0,7.945e-05,2]
[421184581,1777222948504,871.91997337,0.00032876,120]
[421184592,1777223297051,951.98,0.00032876,120]
[421184597,1777223431632,-615.73022702,7.945e-05,2]
[421184598,1777223431647,-699.59791438,7.945e-05,2]
[421184599,1777223431661,-72.8930266,7.945e-05,2]
[421184600,1777223431672,-280.0,8.219e-05,2]
[421184601,1777223431683,-1200.0,8.688e-05,2]
[421184602,1777223431694,-6239.02971027,8.689e-05,2]
[421184603,1777223431705,-150.0,8.698e-05,2]
[421184604,1777223431715,-1077.85484221,8.699e-05,3]
[421184605,1777223431726,-2618.84190128,8.7e-05,2]
[421184606,1777223431740,-4751.41049392,8.7e-05,2]
[421184607,1777223431754,-659.1457183,8.7e-05,2]
[421184608,1777223431769,-952.0,8.7e-05,2]
[421184609,1777223431783,-382.58542602,8.7e-05,2]
[421184610,1777223431801,-2088.41628585,8.7e-05,2]
[421184653,1777223432676,-2360.62950549,8.7e-05,2]